fUST/lending_fUST_20260124
["ID","MTS","AMOUNT","RATE_DAILY","PERIOD"]
[403162077,1769223034193,-300.0,0.00014245,2]
[403162078,1769223034202,-300.0,0.00014245,2]
[403162079,1769223034212,-300.0,0.00014245,2]
[403162080,1769223034221,-300.0,0.00014245,2]
[403162081,1769223034230,-300.0,0.00014245,2]
[403162082,1769223034239,-300.0,0.00014245,2]
[403162083,1769223034248,-300.0,0.00014245,2]
[403162084,1769223034258,-300.0,0.00014245,2]
[403162085,1769223034268,-300.0,0.00014245,2]
[403162086,1769223034277,-300.0,0.00014245,2]
[403162087,1769223034286,-300.0,0.00014245,2]
[403162088,1769223034295,-300.0,0.00014245,2]
[403162089,1769223034303,-300.0,0.00014245,2]
[403162090,1769223034312,-735.21547447,0.00014788,2]
[403162091,1769223034324,-948.43452553,0.00014788,2]
[403162092,1769223034333,-382.7816719,0.00014885,2]
[403162093,1769223034343,-37.2183281,0.00014885,2]
[403162094,1769223034352,-353.08677624,0.00014885,2]
[403162095,1769223038622,-66.91322376,0.00014885,2]
[403162096,1769223038631,-226.55001702,0.00014885,2]
[403162097,1769223038643,-193.44998298,0.00014885,2]
[403162098,1769223038652,-282.30491912,0.00014903,2]
[403162099,1769223038662,-1680.0,0.00014938,2]
[403162100,1769223038675,-217.0,0.0001494,2]
[403162101,1769223038842,-339.8761722,0.00015313,2]
[403162102,1769223038856,-611.77710995,0.00015313,2]
[403162104,1769223038866,-1087.60375103,0.00015313,2]
[403162105,1769223038876,-186.75406418,0.00015315,2]
[403162106,1769223038886,-336.15731552,0.00015315,2]
[403162107,1769223038895,-597.61300537,0.00015315,2]
[403162108,1769223038904,-766.95257455,0.00015457,2]
[403162109,1769223038913,-526.77828738,0.00015457,2]
[403162110,1769223038923,-2525.47,0.00016021,2]
[403162112,1769223038933,-413.28501266,0.00016122,2]
[403162113,1769223038943,-472.32572876,0.00016122,2]
[403162114,1769223038952,-10000.0,0.00016258,2]
[403162115,1769223038962,-1317.24,0.00016258,2]
[403162116,1769223038971,-10000.0,0.00016258,2]
[403162117,1769223038980,-416.34123797,0.00016271,2]
[403162118,1769223038989,-587.0,0.00016314,2]
[403162119,1769223038998,-600.0,0.00016425,2]
[403162120,1769223039008,-745.0,0.00016432,2]
[403162121,1769223039017,-177.18690615,0.00016438,2]
[403162122,1769223039026,-10000.0,0.00016538,2]
[403162123,1769223039036,-500.0,0.00016696,2]
[403162124,1769223039047,-500.0,0.00016833,2]
[403162125,1769223039056,-325.36838136,0.00016903,2]
[403162126,1769223039066,-500.0,0.0001697,2]
[403162127,1769223039075,-500.0,0.00017107,2]
[403162128,1769223039085,-621.847284,0.00017119,2]
[403162129,1769223039095,-499.3,0.00017194,2]
[403162130,1769223039104,-500.0,0.00017244,2]
[403162131,1769223039113,-3367.29,0.00017253,2]
[403162132,1769223039124,-411.50235455,0.00017272,2]
[403162133,1769223039133,-500.0,0.00017381,2]
[403162134,1769223039142,-2000.0,0.00017416,2]
[403162135,1769223039152,-2000.0,0.00017416,2]
[403162136,1769223039161,-475.0,0.00017416,2]
[403162137,1769223039171,-475.0,0.00017416,2]
[403162138,1769223039180,-475.0,0.00017416,2]
[403162139,1769223039189,-475.0,0.00017416,2]
[403162140,1769223039198,-475.0,0.00017416,2]
[403162141,1769223039208,-500.0,0.00017518,2]
[403162142,1769223039216,-261.15200193,0.00017578,2]
[403162143,1769223039225,-348.20266923,0.00017578,2]
[403162144,1769223039235,-174.10133462,0.00017578,2]
[403162145,1769223039245,-2000.0,0.00017583,2]
[403162146,1769223039255,-475.0,0.00017583,2]
[403162147,1769223039264,-475.0,0.00017583,2]
[403162148,1769223039273,-475.0,0.00017583,2]
[403162149,1769223039283,-475.0,0.00017583,2]
[403162150,1769223039294,-150.0,0.00017589,2]
[403162151,1769223039304,-500.0,0.00017589,2]
[403162152,1769223039314,-213.46942712,0.00017626,2]
[403162153,1769223039323,-384.24496881,0.00017626,2]
[403162154,1769223039332,-683.10216678,0.00017626,2]
[403162155,1769223039341,-500.0,0.00017655,2]
[403162156,1769223039350,-150.0,0.00017726,2]
[403162157,1769223039359,-500.0,0.00017726,2]
[403162158,1769223039369,-500.0,0.00017792,2]
[403162159,1769223039378,-150.0,0.00017863,2]
[403162160,1769223039387,-500.0,0.00017863,2]
[403162161,1769223039396,-823.0,0.00017881,2]
[403162162,1769223039406,-500.0,0.00017929,2]
[403162163,1769223039415,-2175.51,0.0001798,3]
[403162164,1769223039424,-1340.72,0.0001798,3]
[403162165,1769223039433,-1340.72,0.0001798,3]
[403162166,1769223039442,-100000.0,0.0001799,2]
[403162167,1769223039452,-150.0,0.00018,2]
[403162168,1769223039461,-500.0,0.00018,2]
[403162169,1769223039470,-602.13446878,0.00018028,2]
[403162170,1769223039479,-500.0,0.00018066,2]
[403162171,1769223039488,-720.0,0.00018068,2]
[403162172,1769223039497,-500.0,0.00018107,2]
[403162173,1769223039507,-517.45280962,0.00018107,2]
[403162174,1769223039515,-500.87942331,0.00018107,2]
[403162175,1769223039529,-500.72387049,0.00018107,2]
[403162176,1769223039538,-505.74002946,0.00018107,2]
[403162177,1769223039547,-500.0,0.00018107,2]
[403162178,1769223039557,-220.18654939,0.00018137,2]
[403162179,1769223039566,-500.0,0.00018137,2]
[403162180,1769223039575,-500.0,0.00018203,2]
[403162181,1769223039583,-500.0,0.00018274,2]
[403162182,1769223039593,-515.93977787,0.00018311,2]
[403162183,1769223039602,-500.0,0.0001834,2]
[403162184,1769223039611,-515.93977783,0.00018345,2]
[403162185,1769223039622,-515.93977783,0.0001838,2]
[403162186,1769223039633,-1096.5816972,0.00018385,2]
[403162187,1769223039642,-1096.5816971,0.00018385,2]
[403162188,1769223039652,-6659.5159508,0.00018385,2]
[403162189,1769223039661,-3227.4313702,0.00018385,2]
[403162190,1769223039669,-99970.83485424,0.000184,2]
[403162191,1769223039678,-500.0,0.00018411,2]
[403162192,1769223039688,-515.93977783,0.00018414,2]
[403162193,1769223039698,-515.93977783,0.00018448,2]
[403162194,1769223039708,-623.10272367,0.00018477,2]
[403162195,1769223039719,-4209.11,0.00018485,2]
[403162196,1769223039728,-977275.27142817,0.00018522,2]
[403162197,1769223039836,-6941.09359314,0.00018522,2]
[403162198,1769223039847,-1040.1369001,0.00018522,2]
[403162199,1769223039859,-1619.38572393,0.00018522,2]
[403162200,1769223039873,-6752.96099586,0.00018522,2]
[403162201,1769223039885,-158061.40979099,0.00018522,2]
[403162202,1769223039896,-3048.9759996,0.00018522,2]
[403162209,1769223040917,-339.07356829,0.00018522,2]
[403162211,1769223040928,-1809.80576183,0.00018522,2]
[403162217,1769223040971,-94186.5394267,0.00018522,2]
[403162525,1769223045391,-3910.00000152,0.00018522,2]
[403162601,1769224237802,-4073.92521534,0.00012782,2]
[403162602,1769224237812,-250.42142715,0.00012911,2]
[403162603,1769224237822,-158.11625829,0.00013273,2]
[403162604,1769224237831,-410.44569767,0.00013497,2]
[403162605,1769224237840,-249.90117914,0.00013497,2]
[403162606,1769224237850,-300.0,0.00013497,2]
[403162607,1769224237859,-745.0,0.00013497,2]
[403162608,1769224237867,-49098.4360762,0.00013498,2]
[403162609,1769224237876,-814.31,0.00013549,2]
[403162610,1769224237885,-500.0,0.00013698,2]
[403162611,1769224237894,-155.0,0.00013962,2]
[403162613,1769224237904,-300.0,0.00013971,2]
[403162614,1769224237913,-300.0,0.00013971,2]
[403162615,1769224237922,-300.0,0.00013971,2]
[403162616,1769224237931,-300.0,0.00013971,2]
[403162617,1769224237941,-300.0,0.00013971,2]
[403162618,1769224237950,-300.0,0.00013971,2]
[403162619,1769224237959,-300.0,0.00013971,2]
[403162620,1769224237968,-300.0,0.00013971,2]
[403162621,1769224237977,-300.0,0.00013971,2]
[403162623,1769224237987,-300.0,0.00013971,2]
[403162625,1769224237997,-300.0,0.00013971,2]
[403162626,1769224238006,-300.0,0.00013971,2]
[403162627,1769224238017,-300.0,0.00013971,2]
[403162628,1769224238026,-300.0,0.00013971,2]
[403162629,1769224238035,-300.0,0.00013971,2]
[403162630,1769224238044,-505.74002946,0.00014244,2]
[403162631,1769224238053,-217.5528258,0.00014734,2]
[403162632,1769224238062,-1628.62,0.00014781,2]
[403162633,1769224238071,-420.0,0.00014794,2]
[403162634,1769224238080,-295.49728403,0.00014911,2]
[403162635,1769224238089,-192.15448487,0.00015112,2]
[403162636,1769224238098,-157.12761963,0.00015335,2]
[403162637,1769224238107,-1000.0,0.00015507,2]
[403162638,1769224238116,-10000.0,0.00015623,2]
[403162639,1769224238125,-1317.24,0.00015623,2]
[403162640,1769224238134,-10000.0,0.00015623,2]
[403162641,1769224238143,-10000.0,0.00015687,2]
[403162642,1769224238152,-2442.92,0.00016013,2]
[403162643,1769224238161,-500.0,0.0001602,2]
[403162644,1769224238170,-499.3,0.00016157,2]
[403162645,1769224238179,-587.0,0.00016216,2]
[403162646,1769224238188,-500.0,0.00016257,2]
[403162647,1769224238197,-177.18690615,0.00016438,2]
[403162648,1769224238206,-234.59568489,0.00016544,2]
[403162649,1769224238215,-214.78339739,0.00016788,7]
[403162650,1769224238224,-262.34602391,0.00016843,7]
[403162651,1769224238232,-340.57314092,0.00016911,2]
[403162652,1769224238241,-190.64096141,0.00016976,2]
[403162653,1769224238250,-254.18794854,0.00016976,2]
[403162654,1769224238258,-211.2532378,0.00017127,7]
[403162655,1769224238267,-517.98565916,0.00017193,2]
[403162656,1769224238276,-422.2722328,0.00017205,2]
[403162657,1769224238285,-3257.23,0.00017245,2]
[403162658,1769224238294,-500.0,0.00017257,2]
[403162659,1769224238303,-500.0,0.00017257,2]
[403162660,1769224238311,-517.45280962,0.00017257,2]
[403162661,1769224238320,-500.87942331,0.00017257,2]
[403162662,1769224238329,-500.72387049,0.00017257,2]
[403162663,1769224238338,-412.98111184,0.00017307,7]
[403162664,1769224238347,-264.34288224,0.00017318,7]
[403162665,1769224238356,-823.0,0.00017774,2]
[403162666,1769224238365,-616.1054766,0.00017778,2]
[403162667,1769224238375,-1651.92444735,0.0001778,7]
[403162668,1769224238384,-750.70619164,0.00017866,2]
[403162669,1769224238394,-358.48798304,0.00017866,2]
[403162670,1769224238403,-100000.0,0.0001799,2]
[403162671,1769224238412,-500.0,0.00018071,2]
[403162672,1769224238423,-500.0,0.00018197,2]
[403162673,1769224238432,-500.0,0.00018197,2]
[403162674,1769224238441,-500.0,0.00018208,2]
[403162675,1769224238451,-515.93977787,0.00018271,2]
[403162676,1769224238460,-500.0,0.00018334,2]
[403162677,1769224238469,-500.0,0.00018334,2]
[403162678,1769224238477,-515.93977783,0.00018345,2]
[403162679,1769224238486,-500.0,0.00018345,2]
[403162680,1769224238495,-600.0,0.00018349,2]
[403162681,1769224238504,-2428.48,0.00018361,3]
[403162682,1769224238513,-1214.24,0.00018361,3]
[403162683,1769224238523,-607.12,0.00018361,3]
[403162684,1769224238533,-303.56,0.00018361,3]
[403162685,1769224238542,-151.78,0.00018361,3]
[403162686,1769224238551,-455.35,0.00018361,3]
[403162687,1769224238559,-7430.85784415,0.00018366,3]
[403162688,1769224238568,-205.71226181,0.0001837,2]
[403162689,1769224238577,-813085.16801994,0.00018371,2]
[403162690,1769224238586,-487.0,0.00018371,2]
[403162691,1769224238595,-487.0,0.00018371,2]
[403162692,1769224238603,-487.0,0.00018371,2]
[403162693,1769224238613,-487.0,0.00018371,2]
[403162694,1769224238622,-487.0,0.00018371,2]
[403162695,1769224238632,-487.0,0.00018371,2]
[403162696,1769224238640,-487.0,0.00018371,2]
[403162697,1769224238652,-487.0,0.00018371,2]
[403162698,1769224238661,-487.0,0.00018371,2]
[403162699,1769224238670,-487.0,0.00018371,2]
[403162700,1769224238679,-487.0,0.00018371,2]
[403162701,1769224238688,-487.0,0.00018371,2]
[403162702,1769224238697,-487.0,0.00018371,2]
[403162703,1769224238706,-487.0,0.00018371,2]
[403162704,1769224238714,-487.0,0.00018371,2]
[403162705,1769224238725,-487.0,0.00018371,2]
[403162706,1769224238735,-487.0,0.00018371,2]
[403162707,1769224238743,-487.0,0.00018371,2]
[403162708,1769224238753,-487.0,0.00018371,2]
[403162709,1769224238762,-487.0,0.00018371,2]
[403162710,1769224238770,-487.0,0.00018371,2]
[403162711,1769224238780,-487.0,0.00018371,2]
[403162712,1769224238789,-487.0,0.00018371,2]
[403162713,1769224238798,-487.0,0.00018371,2]
[403162714,1769224238807,-487.0,0.00018371,2]
[403162715,1769224238816,-768.8,0.00018371,2]
[403162716,1769224238825,-150.0,0.00018392,2]
[403162717,1769224238834,-515.93977783,0.00018419,2]
[403162718,1769224238843,-198.12296418,0.0001847,2]
[403162719,1769224238852,-500.0,0.0001847,2]
[403162720,1769224238862,-500.0,0.00018471,2]
[403162721,1769224238871,-500.0,0.00018471,2]
[403162722,1769224238880,-1907.2277479,0.00018471,2]
[403162723,1769224238889,-18224.3473455,0.00018471,2]
[403162724,1769224238899,-3074.3676194,0.00018471,2]
[403162725,1769224238909,-6954.6386417,0.00018471,2]
[403162726,1769224238918,-1817.4966366,0.00018471,2]
[403162727,1769224238928,-880.8216247,0.00018471,2]
[403162728,1769224238937,-4071.54,0.00018476,2]
[403162729,1769224238947,-500.0,0.00018482,2]
[403162730,1769224238956,-515.93977783,0.00018492,2]
[403162731,1769224238965,-174430.59879357,0.00018522,2]
[403162737,1769224240202,-1023.59729684,0.00018522,2]
[403162738,1769224240215,-576.35107221,0.00018522,2]
[403162745,1769224243158,-6887.01971257,0.00018522,2]
[403162746,1769224243169,-9011.20723126,0.00018522,2]
[403162758,1769224245927,-151.0,0.00017,2]
[403162759,1769224245937,-151.0,0.000178,2]
[403162760,1769224245947,-853.11275136,0.00018522,2]
[403162761,1769224245980,-10731.46518036,0.00018522,2]
[403162765,1769224424163,-183.0639306,0.00012885,2]
[403162766,1769224424182,-151.47051167,0.00012966,2]
[403162767,1769224664089,-31.59341893,0.00012966,2]
[403162768,1769224664110,-133.8721388,0.00013088,2]
[403162798,1769225193112,150.0,0.0001251,2]
[403162825,1769225269592,425.0,0.0001251,2]
[403162830,1769225291483,0.02828078,0.00012,2]
[403162831,1769225291509,873.62954822,0.00012,2]
[403162842,1769225423579,-155.0,0.00012862,2]
[403162843,1769225423606,-765.27,0.00013088,2]
[403162905,1769225432136,-150.0,0.00013088,2]
[403162907,1769225432147,-250.41414733,0.00013119,2]
[403162909,1769225432156,-183.0639306,0.0001321,2]
[403162911,1769225432165,-699.18858874,0.00013612,2]
[403162913,1769225432177,-35.25141126,0.00013612,2]
[403162915,1769225432186,-183.0639306,0.00013617,2]
[403162918,1769225432196,-198.12296418,0.00013698,2]
[403162919,1769225432205,-500.0,0.00013699,2]
[403162921,1769225432215,-183.24699453,0.00014186,2]
[403162923,1769225432224,-160.57814333,0.00014415,2]
[403162925,1769225432233,-1468.89,0.00014849,2]
[403162927,1769225432242,-1200.0,0.00015116,2]
[403162929,1769225432251,-300.0,0.00015117,2]
[403162931,1769225432260,-300.0,0.00015117,2]
[403162933,1769225432269,-300.0,0.00015118,2]
[403162935,1769225432279,-295.48869385,0.00015119,2]
[403162937,1769225432288,-160.48660458,0.00015907,2]
[403162940,1769225432298,-288.87588824,0.00015907,2]
[403162941,1769225432307,-199.30119434,0.00015907,2]
[403162943,1769225432316,-358.74214982,0.00015907,2]
[403162945,1769225432326,-2203.33,0.00016087,2]
[403162947,1769225432335,-713.176614,0.00016299,2]
[403162948,1769225432344,-300.0,0.00016412,2]
[403162949,1769225432353,-300.0,0.00016412,2]
[403162950,1769225432363,-300.0,0.00016412,2]
[403162951,1769225432372,-300.0,0.00016412,2]
[403162952,1769225432381,-300.0,0.00016412,2]
[403162953,1769225432390,-300.0,0.00016412,2]
[403162954,1769225432399,-300.0,0.00016412,2]
[403162955,1769225432408,-300.0,0.00016412,2]
[403162956,1769225432417,-300.0,0.00016412,2]
[403162957,1769225432427,-300.0,0.00016412,2]
[403162958,1769225432436,-300.0,0.00016412,2]
[403162959,1769225432445,-300.0,0.00016412,2]
[403162960,1769225432454,-300.0,0.00016412,2]
[403162961,1769225432464,-300.0,0.00016412,2]
[403162962,1769225432473,-300.0,0.00016412,2]
[403162963,1769225432482,-500.0,0.00016412,2]
[403162964,1769225432491,-286.0,0.00016543,2]
[403162965,1769225432500,-420.0,0.00016543,2]
[403162966,1769225432509,-218.45131099,0.00016561,2]
[403162967,1769225432518,-3713.11317653,0.00016562,2]
[403162968,1769225432528,-858.27445599,0.00016562,2]
[403162969,1769225432537,-1680.0,0.00016626,2]
[403162970,1769225432546,-500.0,0.00016686,2]
[403162971,1769225432555,-475.0,0.00016829,2]
[403162972,1769225432564,-475.0,0.00016829,2]
[403162973,1769225432573,-475.0,0.00016829,2]
[403162974,1769225432581,-411.50235455,0.00016898,2]
[403162975,1769225432590,-150.60635951,0.00016926,2]
[403162976,1769225432599,-200.80847935,0.00016926,2]
[403162977,1769225432608,-500.0,0.0001696,2]
[403162978,1769225432617,-2000.0,0.00017,2]
[403162979,1769225432626,-2000.0,0.00017,2]
[403162980,1769225432635,-2000.0,0.00017,2]
[403162981,1769225432643,-340.56324037,0.00017119,2]
[403162982,1769225432652,-2937.77,0.00017223,2]
[403162983,1769225432662,-500.0,0.00017234,2]
[403162984,1769225432671,-635.99,0.00017328,2]
[403162985,1769225432680,-1056.31415742,0.00017434,7]
[403162986,1769225432689,-675.06527897,0.00017479,2]
[403162987,1769225432699,-1215.11750214,0.00017479,2]
[403162988,1769225432708,-2160.20889269,0.00017479,2]
[403162989,1769225432718,-3375.32639483,0.00017479,2]
[403162990,1769225432727,-4860.47000855,0.00017479,2]
[403162991,1769225432736,-380.34559955,0.00017479,2]
[403162992,1769225432745,-684.62207919,0.00017479,2]
[403162993,1769225432754,-1217.10591857,0.00017479,2]
[403162994,1769225432763,-500.0,0.00017508,2]
[403162995,1769225432771,-600.0,0.00017664,2]
[403162996,1769225432781,-500.0,0.00017729,2]
[403162997,1769225432790,-500.0,0.00017782,2]
[403162998,1769225432799,-635.99,0.00017989,2]
[403162999,1769225432808,-635.99,0.00017989,2]
[403163000,1769225432819,-635.99,0.00017989,2]
[403163001,1769225432828,-635.99,0.00017989,2]
[403163002,1769225432837,-635.99,0.00017989,2]
[403163003,1769225432846,-41212.63513222,0.0001799,2]
[403163011,1769225437976,-1682.81658013,0.0001799,2]
[403163012,1769225437991,-998.22953471,0.0001799,2]
[403163013,1769225438002,-381.18565502,0.0001799,2]
[403163014,1769225438013,-55725.13309792,0.0001799,2]
[403163015,1769225438022,-151.0,0.00018046,2]
[403163016,1769225438032,-500.0,0.00018046,2]
[403163017,1769225438041,-151.0,0.00018046,2]
[403163018,1769225438051,-500.0,0.00018046,2]
[403163019,1769225438061,-2487.15318209,0.00018046,2]
[403163020,1769225438072,-152.56789105,0.00018046,2]
[403163021,1769225438082,-500.0,0.00018046,2]
[403163022,1769225438091,-187.78006525,0.00018046,2]
[403163023,1769225438100,-500.0,0.00018046,2]
[403163024,1769225438111,-194.72792766,0.00018046,2]
[403163026,1769225438120,-187.78006525,0.00018046,2]
[403163027,1769225438129,-201.93286099,0.00018046,2]
[403163028,1769225438138,-500.0,0.00018046,2]
[403163029,1769225438147,-209.40437684,0.00018046,2]
[403163030,1769225438157,-500.0,0.00018046,2]
[403163031,1769225438167,-217.15233878,0.00018046,2]
[403163032,1769225438175,-500.0,0.00018046,2]
[403163033,1769225438184,-225.18697532,0.00018046,2]
[403163034,1769225438193,-500.0,0.00018046,2]
[403163035,1769225438203,-233.51889341,0.00018046,2]
[403163036,1769225438212,-500.0,0.00018046,2]
[403163037,1769225438221,-561.39705861,0.00018046,2]
[403163038,1769225438230,-242.15909246,0.00018046,2]
[403163039,1769225438240,-251.11897888,0.00018046,2]
[403163040,1769225438249,-260.4103811,0.00018046,2]
[403163041,1769225438258,-270.0455652,0.00018046,2]
[403163042,1769225438268,-280.03725112,0.00018046,2]
[403163043,1769225438277,-290.39862941,0.00018046,2]
[403163044,1769225438286,-301.1433787,0.00018046,2]
[403163045,1769225438295,-500.0,0.00018046,2]
[403163046,1769225438305,-500.0,0.00018046,2]
[403163047,1769225438314,-500.0,0.00018046,2]
[403163048,1769225438323,-500.0,0.00018046,2]
[403163049,1769225438333,-473.84427409,0.00018046,2]
[403163050,1769225438342,-500.0,0.00018046,2]
[403163051,1769225438351,-250.0,0.00018046,2]
[403163052,1769225438360,-250.0,0.00018046,2]
[403163053,1769225438370,-250.0,0.00018046,2]
[403163054,1769225438379,-340.92669039,0.00018046,2]
[403163055,1769225438389,-500.0,0.00018071,2]
[403163056,1769225438399,-259.30629665,0.00018071,2]
[403163057,1769225438408,-150.0,0.00018071,2]
[403163058,1769225438417,-500.0,0.00018071,2]
[403163059,1769225438426,-150.0,0.00018071,2]
[403163060,1769225438437,-196.05,0.00018072,3]
[403163061,1769225438446,-588.17,0.00018072,3]
[403163062,1769225438455,-756.048801,0.00018082,2]
[403163063,1769225438466,-762.0067876,0.00018082,2]
[403163064,1769225438476,-500.0,0.00018208,2]
[403163065,1769225438485,-150.0,0.00018208,2]
[403163066,1769225438494,-500.0,0.00018208,2]
[403163067,1769225438503,-151.33761137,0.00018208,2]
[403163068,1769225438512,-392.1,0.0001831,3]
[403163069,1769225438521,-635.99,0.00018318,2]
[403163070,1769225438530,-5450.0,0.00018319,2]
[403163071,1769225438539,-309.56386673,0.00018319,2]
[403163072,1769225438548,-784.19,0.0001832,3]
[403163073,1769225438558,-508.43908879,0.0001833,2]
[403163074,1769225438568,-500.0,0.00018345,2]
[403163075,1769225438577,-150.0,0.00018345,2]
[403163076,1769225438586,-500.0,0.00018345,2]
[403163077,1769225438595,-1568.39,0.00018359,3]
[403163078,1769225438604,-1415.42,0.00018366,3]
[403163079,1769225438613,-309.56386669,0.00018381,2]
[403163080,1769225438622,-192.54487403,0.00018385,7]
[403163081,1769225438631,-183.36560177,0.00018399,2]
[403163082,1769225438641,-170.39702713,0.00018399,2]
[403163083,1769225438650,-409.56742473,0.00018399,2]
[403163084,1769225438660,-468.1071873,0.00018399,2]
[403163085,1769225438669,-842.59293713,0.00018399,2]
[403163086,1769225438678,-1497.94299935,0.00018399,2]
[403163087,1769225438688,-406.5069513,0.00018399,2]
[403163088,1769225438697,-464.57937292,0.00018399,2]
[403163089,1769225438707,-120920.15975974,0.000184,2]
[403163112,1769225444040,-254.43548698,0.00018046,2]
[403163114,1769225444050,-14.81189602,0.00018046,2]
[403163123,1769225468543,-107.38453147,0.00016085,2]
[403163141,1769225901118,318.0,0.00012,2]
[403163150,1769226158518,-155.0,0.00012859,2]
[403163151,1769226158540,-602.0,0.00012859,2]
[403163152,1769226178118,-247.9248257,0.00013213,2]
[403163153,1769226178140,-105.0751743,0.00013567,2]
[403163155,1769226403581,-155.0,0.00012859,2]
[403163156,1769226403604,-641.54,0.00013595,2]
[403163157,1769226403624,-203.46,0.00013647,2]
[403163158,1769226405301,-39.50632918,0.00013647,2]
[403163159,1769226405322,-500.0,0.00013699,2]
[403163160,1769226405340,-460.49367082,0.00014247,2]
[403163161,1769226410412,-46.83700437,0.00014247,2]
[403163162,1769226410438,-953.16299563,0.00014831,2]
[403163163,1769226410469,-329.91700437,0.00014831,2]
[403163167,1769226479845,-617.05,0.00013871,2]
[403163168,1769226479882,-1234.09,0.00015132,2]
[403163169,1769226479906,-286.70026844,0.00015647,2]
[403163170,1769226479931,-300.0,0.00016301,2]
[403163171,1769226479956,-500.0,0.00016302,2]
[403163172,1769226479980,-500.0,0.00016302,2]
[403163173,1769226480006,-500.0,0.00016302,2]
[403163174,1769226480031,-553.19415934,0.00016302,2]
[403163175,1769226480056,-500.0,0.00016302,2]
[403163176,1769226480080,-526.28145134,0.00016302,2]
[403163177,1769226480106,-500.0,0.00016302,2]
[403163178,1769226480131,-500.0,0.00016302,2]
[403163179,1769226480155,-500.0,0.00016302,2]
[403163180,1769226480181,-500.0,0.00016302,2]
[403163181,1769226480206,-500.0,0.00016302,2]
[403163182,1769226480231,-500.0,0.00016302,2]
[403163183,1769226480255,-637.35802352,0.00016302,2]
[403163184,1769226480280,-469.55134402,0.00016302,2]
[403163185,1769226480306,-500.0,0.00016302,2]
[403163186,1769226480509,-500.0,0.00016302,2]
[403163187,1769226480537,-489.68715711,0.00016302,2]
[403163188,1769226480563,-500.0,0.00016302,2]
[403163189,1769226480590,-644.15208513,0.00016302,2]
[403163190,1769226480615,-276.63190634,0.00016302,2]
[403163191,1769226480639,-300.0,0.00016303,2]
[403163192,1769226480663,-1200.0,0.00016303,2]
[403163193,1769226480690,-300.0,0.00016304,2]
[403163194,1769226480714,-300.0,0.00016304,2]
[403163195,1769226480739,-300.0,0.00016304,2]
[403163196,1769226480763,-300.0,0.00016304,2]
[403163197,1769226480789,-300.0,0.00016304,2]
[403163198,1769226480814,-300.0,0.00016304,2]
[403163199,1769226480842,-300.0,0.00016304,2]
[403163200,1769226480866,-300.0,0.00016304,2]
[403163201,1769226480890,-300.0,0.00016304,2]
[403163202,1769226480915,-300.0,0.00016304,2]
[403163203,1769226480940,-300.0,0.00016304,2]
[403163204,1769226480965,-300.0,0.00016304,2]
[403163205,1769226480990,-300.0,0.00016304,2]
[403163206,1769226481018,-300.0,0.00016304,2]
[403163207,1769226481042,-300.0,0.00016304,2]
[403163208,1769226481066,-509.00140363,0.00016332,2]
[403163209,1769226481090,-457.16256568,0.00016332,2]
[403163210,1769226481115,-1851.14,0.00016393,2]
[403163211,1769226481140,-600.0,0.00016406,2]
[403163212,1769226481165,-475.0,0.00016721,2]
[403163213,1769226481188,-475.0,0.00016806,2]
[403163214,1769226481212,-475.0,0.00016806,2]
[403163215,1769226481237,-213.64711183,0.00017302,2]
[403163216,1769226481262,-500.0,0.00017303,2]
[403163217,1769226481286,-330.43420769,0.00017647,2]
[403163218,1769226481315,-2468.18,0.00017654,2]
[403163219,1769226481348,-2487.15318209,0.00017693,2]